Cogmind - Beta 15 @@@ ROGUE MODE // 2025.08.30 @ 15:18:04 Player: winnking222 Result: Destroyed by YM-SIO(R) with Subdweller Shrapnel Launcher Performance ------------- Evolutions (0) 0 Regions Visited (3) 600 Robots Destroyed (29) 145 Value Destroyed (543) 543 Prototype IDs (0) 0 Alien Tech Used (0) 0 Bonus (0) 0 TOTAL SCORE: 1288 Bonus ------- None Cogmind --------- Core Integrity 0/250 Matter 212/300 Energy 86/100 System Corruption 1% Temperature Cool (0) Movement Treading (240) Ox1 Location -10/Subcaves Parts ------- > --- POWER (1) -------- (None) > --- PROPULSION (2) --- Light Treads > --- UTILITY (2) ------ Large Storage Unit Light Armor Plating > --- WEAPON (2) ------- Light Cannon Light Cannon > --- INVENTORY (15) --- Ion Engine Light Treads Wheel Compact Wheel High-capacity Storage Unit Seismic Detector Light Armor Plating Light Armor Plating EM Pulse Gun Explosive Trap Explosive Trap Explosive Trap Explosive Trap Peak State ------------ > --- POWER ------------ Ion Engine > --- PROPULSION ------- Light Treads Light Treads > --- UTILITY ---------- Large Storage Unit Seismic Detector > --- WEAPON ----------- Medium Laser Light Assault Rifle > --- INVENTORY -------- Ion Engine Light Ion Engine Light Treads Light Treads Aluminum Leg Aluminum Leg Wheel Compact Wheel Seismic Detector EM Pulse Gun [Rating: 8] Favorites ----------- Power Ion Engine Engine Ion Engine Propulsion Light Treads Treads Light Treads Leg Aluminum Leg Utility Large Storage Unit Device Seismic Detector Storage Large Storage Unit Protection Light Armor Plating Weapon Light Cannon Energy Gun EM Pulse Gun Ballistic Gun Light Assault Rifle Ballistic Cannon Light Cannon Build | -11 -10 -10 -10 ------- Run | Yrd Mat Min Sub Slots Evolved . | . . . . Power . | . . . . Propulsion . | . . . . Utility . | . . . . Weapon . | . . . . Parts Attached 20 | 8 6 4 2 Power 2 | 1 1 . . Engine 2 | 1 1 . . Core . | . . . . Reactor . | . . . . Propulsion 5 | 2 2 1 . Treads 3 | . 2 1 . Leg 2 | 2 . . . Wheel . | . . . . Hover . | . . . . Flight . | . . . . Utility 7 | 2 2 2 1 Device 2 | 1 1 . . Storage 2 | 1 1 . . Processor . | . . . . Hackware . | . . . . Protection 3 | . . 2 1 Artifact . | . . . . Weapon 6 | 3 1 1 1 Energy Gun 2 | 2 . . . Energy Cannon . | . . . . Ballistic Gun 1 | 1 . . . Ballistic Cannon 3 | . 1 1 1 Launcher . | . . . . Special Weapon . | . . . . Impact Weapon . | . . . . Slashing Weapon . | . . . . Piercing Weapon . | . . . . Special Melee Weapon . | . . . . Unidentified Prototypes . | . . . . Parts Lost 6 | . 1 1 4 Power 1 | . . . 1 Propulsion 2 | . . 1 1 Utility 2 | . 1 . 1 Weapon 1 | . . . 1 Highest Loss Streak 4 | . 1 1 4 To Critical Strikes . | . . . . Average Backups 11 | 5 11 11 10 Power 1 | . 1 1 1 Propulsion 4 | 3 5 3 3 Utility 3 | . 2 5 4 Weapon 2 | . 1 2 1 Tool/Special . | . . . . Unused Backups 8 | . . 1 7 Power 2 | . . 1 1 Propulsion 3 | . . . 3 Utility 2 | . . . 2 Weapon 1 | . . . 1 Tool/Special . | . . . . Average Slot Usage (%) 98 | . 98 100 89 Engine 13 | . 14 14 8 Treads 26 | . 25 28 24 Leg 1 | . 2 . . Device 7 | . 12 1 . Storage 14 | . 14 14 14 Protection 6 | . . 12 14 Energy Gun 7 | . 14 . . Ballistic Gun 5 | . 10 . . Ballistic Cannon 15 | . 2 28 28 Peak Build Rating 8 | 7 8 8 8 Average Rating 7 | 4 7 7 7 On Entrance 5 | . 7 8 8 Naked Turns . | . . . . Heaviest Build 34 | 14 31 34 34 Greatest Support 40 | 20 40 40 40 Greatest Overweight (x) . | . . . . Average Overweight (x) . | . . . . Largest Inventory Capacity 15 | 8 15 15 15 Average Capacity 13 | 7 13 15 15 Most Carried 15 | 7 15 15 15 Average Carried 12 | 5 11 14 14 Final Capacity 15 | 8 15 15 15 Final Carried 15 | 7 15 15 13 Class Distribution -------------------- 100% | Mutant Dominant Class ---------------- Mutant | -10/Materials Mutant | -10/Mines Mutant | -10/Subcaves Resources | -11 -10 -10 -10 ----------- Run | Yrd Mat Min Sub Matter Collected 693 | 248 161 284 . Remotely . | . . . . Salvage Created 758 | 48 539 142 29 Parts 54 | 9 25 20 . Haulers Intercepted 2 | . 2 . . Recyclers Shooed 1 | . 1 . . Parts Field Recycled . | . . . . Retrieved Matter . | . . . . Parts Self-Destructed . | . . . . Prevented . | . . . . Kills | -11 -10 -10 -10 ------- Run | Yrd Mat Min Sub Combat Hostiles Destroyed 22 | . 10 11 1 Guns 10 | . 10 . . Cannons 12 | . . 11 1 Classes Destroyed 6 | 1 4 . 1 Tunneler 4 | 3 . 1 . Hauler 2 | . 2 . . Recycler 1 | . 1 . . Swarmer 12 | . 3 9 . Grunt 9 | . 7 2 . Subdweller 1 | . . . 1 Best Kill Streak 4 | 2 4 4 1 Combat Bots Only 4 | . 4 3 1 Max Kills in Single Turn 1 | 1 1 1 1 Gunslinging . | . . . . Exploded . | . . . . Melee . | . . . . Uniques/NPCs Destroyed . | . . . . Combat | -11 -10 -10 -10 -------- Run | Yrd Mat Min Sub Hostile Shots Fired 131 | . 49 58 24 Missed 30 | . 9 14 7 Hits 101 | . 40 44 17 Projectile 101 | . 40 44 17 AOE 5 | . . . 5 Critical Strikes 3 | . 2 1 . Damage Taken 1373 | . 455 396 522 Core 273 | . 54 49 170 Absorbed by Shields . | . . . . Core Remaining (%) 100 | 100 . . . Volleys Fired 95 | 13 47 24 11 Largest 2 | 2 2 2 2 Hottest 70 | 70 70 60 60 Shots Fired 187 | 26 91 48 22 Gun 117 | 26 91 . . Cannon 70 | . . 48 22 Launcher . | . . . . Special . | . . . . Kinetic 127 | 13 44 48 22 Thermal 39 | 13 26 . . Explosive . | . . . . Electromagnetic 21 | . 21 . . Robot Hit Streak 8 | 5 8 8 7 Robot Miss Streak 5 | 2 4 5 1 Penetration Max . | . . . . Secondary Targets 4 | . 4 . . Max Gunslinging Chain 1 | . 1 . . Shots Hit Robots 121 | 17 62 24 18 Core Hits 47 | 4 27 13 3 Critical Kills . | . . . . Critical Parts Destroyed . | . . . . Critical Strikes 7 | 2 2 3 . Burn 4 | 2 2 . . Blast 3 | . . 3 . Melee Attacks . | . . . . Impact . | . . . . Slashing . | . . . . Piercing . | . . . . Sneak Attacks . | . . . . Combat Hostiles . | . . . . Follow-up Attacks . | . . . . Damage Inflicted 1651 | 190 689 454 318 Guns 879 | 190 689 . . Cannons 772 | . . 454 318 Explosions . | . . . . Melee . | . . . . Ramming . | . . . . Kinetic 1083 | 76 235 454 318 Thermal 378 | 114 264 . . Explosive . | . . . . Electromagnetic 190 | . 190 . . Impact . | . . . . Slashing . | . . . . Piercing . | . . . . Highest Corruption 1 | . 1 1 1 Average Corruption 1 | . 1 1 1 Corruption Purged . | . . . . Corruption Blocked . | . . . . Effects 17 | . 9 7 1 Message Errors 3 | . 1 2 . Matter Fused 7 | . 4 3 . Heat Flow Errors 1 | . 1 . . Energy Discharges 3 | . 2 . 1 Data Loss (minor) 2 | . 1 1 . Data Loss (major) 1 | . . 1 . Overload Shots . | . . . . Overflow Damage . | . . . . Projectiles . | . . . . Explosions . | . . . . Melee . | . . . . Knockbacks 9 | . . 5 4 Impact . | . . . . Kinetic 9 | . . 5 4 Secondary . | . . . . Self-Inflicted Damage . | . . . . Shots . | . . . . Rammed . | . . . . Targets Rammed . | . . . . Kicked . | . . . . Crushed . | . . . . Highest Temperature 202 | 110 202 97 . Average Temperature 56 | 43 70 33 . Received Heat Transfer 390 | . 240 78 72 Siege Activations . | . . . . Martial Activations . | . . . . Shielding Activations . | . . . . Robots Disrupted . | . . . . Combat Hostiles . | . . . . Robots Corrupted . | . . . . Combat Hostiles . | . . . . Parts Fried 1 | . 1 . . Impact Corruptions . | . . . . Robots Melted . | . . . . Combat Hostiles . | . . . . Parts Melted 3 | 1 2 . . Heat Transferred 1406 | 481 925 . . Parts Sabotaged . | . . . . Parts Stolen . | . . . . Parts Stripped . | . . . . Power Chain Reactions . | . . . . Alert | -11 -10 -10 -10 ------- Run | Yrd Mat Min Sub Maximum Alert Level . | . . . . Low Security (%) 100 | 100 100 100 . Level 1 . | . . . . Level 2 . | . . . . Level 3 . | . . . . Level 4 . | . . . . Level 5 . | . . . . High Security . | . . . . Max Security . | . . . . Peak Influence 113 | 5 90 113 . Initial . | . . . . Average 23 | 1 20 30 . Influence Increases 553 | 15 273 265 . Destroy 0b10 Robot/C 420 | . 200 220 . Destroy 0b10 Robot/NC 35 | 15 15 5 . Destroy Leader 94 | . 54 40 . Successful Hack 4 | . 4 . . Influence Decreases 553 | 15 273 230 35 Entered New Map 19 | . . . 19 Time Decay 518 | 15 263 230 10 Lost Part 16 | . 10 . 6 Squads Dispatched 2 | . 2 . . Investigation . | . . . . Extermination . | . . . . Reinforcement 2 | . 2 . . Assault . | . . . . Garrison . | . . . . Intercept . | . . . . Searches Triggered . | . . . . Construction Impeded . | . . . . Haulers Reinforced . | . . . . Active Scanning Responses . | . . . . Cargo Convoy Interrupts . | . . . . Stealth | -11 -10 -10 -10 --------- Run | Yrd Mat Min Sub Distress Signals 2 | . 2 . . Communications Jammed . | . . . . Distress Signals . | . . . . Times Spotted 36 | . 22 11 3 Peak Tracking Total 4 | . 4 3 3 Tactical Retreats . | . . . . Traps | -11 -10 -10 -10 ------- Run | Yrd Mat Min Sub Traps Triggered 1 | . 1 . . Indirectly . | . . . . Trap Hack Attempts . | . . . . Triggered . | . . . . Disarmed . | . . . . Reprogrammed . | . . . . Reused . | . . . . Traps Extracted . | . . . . Installed . | . . . . Triggered . | . . . . Most Traps Carried 4 | . . 4 4 Machines | -11 -10 -10 -10 ---------- Run | Yrd Mat Min Sub Machines Disabled . | . . . . Max in Single Turn . | . . . . Machines Repaired . | . . . . Machines Dismantled . | . . . . Machines Sabotaged . | . . . . Overloaded Fab Kills . | . . . . Hacking | -11 -10 -10 -10 --------- Run | Yrd Mat Min Sub Machines Accessed 3 | . 3 . . Terminals 3 | . 3 . . Fabricators . | . . . . Repair Stations . | . . . . Recycling Units . | . . . . Scanalyzers . | . . . . Garrison Access . | . . . . Total Hacks 11 | . 11 . . Successful 5 | . 5 . . Failed 6 | . 6 . . Catastrophic . | . . . . Database Lockouts . | . . . . Manual 7 | . 7 . . Terminals 11 | . 11 . . Fabricators . | . . . . Repair Stations . | . . . . Recycling Units . | . . . . Scanalyzers . | . . . . Garrison Access . | . . . . Terminal Hacks 2 | . 2 . . Locate Traps 1 | . 1 . . Hauler Manifests 1 | . 1 . . Fabricator Hacks . | . . . . Repair Station Hacks . | . . . . Recycling Unit Hacks . | . . . . Scanalyzer . | . . . . Garrison Access Hacks . | . . . . Unauthorized Hacks 3 | . 3 . . Terminals 3 | . 3 . . Botnet 2 | . 2 . . Skim 1 | . 1 . . Fabricators . | . . . . Repair Stations . | . . . . Recycling Units . | . . . . Scanalyzers . | . . . . Garrison Access . | . . . . Data Cores Recovered . | . . . . Used . | . . . . Hacking Detections 2 | . 2 . . Full Trace Events 1 | . 1 . . Feedback Events . | . . . . Feedback Blocked . | . . . . Robot Schematics Acquired . | . . . . Robots Built . | . . . . Authchips . | . . . . Time . | . . . . Total Robot Build Rating . | . . . . Part Schematics Acquired . | . . . . Parts Built . | . . . . Authchips . | . . . . Time . | . . . . Total Part Build Rating . | . . . . Parts Repaired . | . . . . Time . | . . . . Parts Recycled . | . . . . Recycled Matter . | . . . . Retrieved Matter . | . . . . Retrieved Components . | . . . . Parts Scanalyzed . | . . . . Part Schematics Acquired . | . . . . Parts Damaged . | . . . . Bothacking | -11 -10 -10 -10 ------------ Run | Yrd Mat Min Sub Used RIF Installer . | . . . . Robots Hacked . | . . . . Non-combat . | . . . . Combat . | . . . . Robot Hacks Applied . | . . . . Relay Couplers Released . | . . . . Fabnet Peak Effective % . | . . . . Robots Rewired . | . . . . Allies Hacked . | . . . . Hacks Repelled . | . . . . Allies | -11 -10 -10 -10 -------- Run | Yrd Mat Min Sub Total Allies . | . . . . Largest Group . | . . . . Highest-Rated Group . | . . . . Highest-Rated Ally . | . . . . Total Orders . | . . . . Ally Attacks . | . . . . Total Damage . | . . . . Kills . | . . . . Allies Corrupted . | . . . . Allies Melted . | . . . . Intel | -11 -10 -10 -10 ------- Run | Yrd Mat Min Sub Active Infowar (turns) 1004 | 28 863 113 . Seismic 1004 | 28 863 113 . Robot Analysis Total . | . . . . Derelict Logs Recovered 3 | . . 3 . Drone Launches . | . . . . Drone Recoveries . | . . . . Exploration | -11 -10 -10 -10 ------------- Run | Yrd Mat Min Sub Turns Passed 2067 | 126 984 893 64 Spaces Moved 1076 | 64 491 502 19 Core 11 | 11 . . . Treads 961 | . 440 502 19 Legs 104 | 53 51 . . Wheels . | . . . . Hover . | . . . . Flight . | . . . . Fastest Speed 50 | 50 120 160 160 Average Speed 155 | 107 155 160 160 Slowest Speed 160 | 120 160 160 160 Overloaded Moves . | . . . . Propulsion Burnouts . | . . . . Robots Hopped . | . . . . Potential Cave-ins . | . . . . Cave-ins Triggered . | . . . . Exploration Rate (%) 48 | 4 86 98 4 Regions Visited 3 Branch Regions 2 Pre-discovered Areas 1 | . . 1 . Known Exits Taken . | . . . . Unknown Exits Taken 3 | 1 1 1 . Scrap Searched 1 | . . 1 . Spaces Dug . | . . . . Terrain Destroyed . | . . . . Melee . | . . . . Projectile . | . . . . AOE . | . . . . Terrain Rammed . | . . . . Walls Destroyed . | . . . . Machines Disabled . | . . . . Actions | -11 -10 -10 -10 --------- Run | Yrd Mat Min Sub Total 1298 | 95 628 543 32 Wait 73 | . 67 6 . Move 1073 | 63 490 501 19 Hop . | . . . . Pick Up 27 | 11 12 4 . Fast Attach 4 | 3 1 . . Attach 8 | 4 1 1 2 Detach . | . . . . Swap 10 | 1 5 4 . Drop 8 | . 5 3 . Fire 95 | 13 47 24 11 Melee . | . . . . Ram . | . . . . Kick . | . . . . Crush . | . . . . Escape Stasis . | . . . . Rewire . | . . . . Trap . | . . . . Miscellaneous . | . . . . Route ------- -11/Scrapyard -10/Materials (discovered 5 exits: [*Mat x3] / [*Min x2]) -10/Mines (discovered 3 exits: [*Mat x2] / [*Sub]) -10/Subcaves (discovered 1 exit: [*Mat]) History --------- Turn | Location | Event 13 | -11/Scrapyard | Discovered new exit (range 14) 127 | -11/Scrapyard | Entered Materials 127 | -10/Materials | Discovered new exit (range 15) 307 | -10/Materials | Build established: Mutant 501 | -10/Materials | Discovered new exit (range 14) 664 | -10/Materials | Discovered new exit (range 15) 765 | -10/Materials | Discovered new exit (range 15) 1044 | -10/Materials | Discovered new exit (range 15) 1111 | -10/Materials | Entered Mines 1294 | -10/Mines | Found a hidden stash of uninstalled traps 1526 | -10/Mines | Discovered new exit (range 15) 1626 | -10/Mines | Discovered new exit (range 6) 1687 | -10/Mines | Learned 4 Materials zone layouts 1805 | -10/Mines | Learned Materials terminal intel 1882 | -10/Mines | Learned location of Zion (-7) 1992 | -10/Mines | Discovered new exit (range 6) 2004 | -10/Mines | Entered Subcaves 2004 | -10/Subcaves | Discovered new exit (range 7) 2034 | -10/Subcaves | Ambushed by Subdwellers from Twisted Machinery 2035 | -10/Subcaves | Core integrity fell below 50% 2035 | -10/Subcaves | Ambushed by Subdweller buried in earth 2057 | -10/Subcaves | Core integrity fell below 20% 2068 | -10/Subcaves | Destroyed by YM-SIO(R) with Subdweller Shrapnel Launcher Last Messages --------------- 01813_ Acquired 2 matter. 01815_ Acquired 58 matter. 01882_ Acquired derelict log, extracted data. World map updated: -7/Zion. 01992_ EXIT=FOUND LOCATION=UNKNOWN AMBIENT_HEAT=-10 GOAL=ESCAPE 02004_ EXIT=FOUND 02024_ System corrupted: Energy discharge (-50). 02034_ 5G-H1G(R) emerges from the Twisted Machinery. 02035_ Ion Engine destroyed. 02036_ SP-HHB(R): "ARGHSUB!" 02048_ Lgt. Treads destroyed. 02054_ Lgt. Cannon destroyed. 02056_ 5G-H1G(R) destroyed. 02057_ SP-HHB(R) knocked back. 02063_ SP-HHB(R) destroyed. 02064_ Lgt. Armor Plating destroyed. 02067_ YM-SIO(R) knocked back. Map ----- +----------------------------------------------------+ | ??????????????????????????????? ## #????????? | | ???????????????????????????????< #????????? | | ??????????????????????????????? ??????????? | | ?????????????????????????????## ????????????? | | ????????????????????????????## ??????????????? | | ????????????????????????????# #???????????????? | | ???????????????????????????## #???????????????? | | ???????????????????????????# ## #????##????????? | | ???????????????????????????# #?????? #????????? | | ???????????????????????????# #??### #????????? | | ???????????????????????????## ### ##????????? | | ???????????????????????????## #????????? | | ???????????????????????????# #????????? | | ???????????????????????????# # # ###????????? | | ???????????????????????##??# ##??#??????????? | | ???????????????????????# #### ##??????????????? | | ???????????????????????# ##???????????????? | | ???????????????????????## ##????????????????? | | ????????????????????????# # #?????????????????? | | ???????????????????????## ####?????????????????? | | ????????????????????#### ####??????????????????? | | ????????????????????# #??????????????????? | | ???????????????????## #??????????????????? | | ???????????????????# #??????????????????? | | ????????????????????# ##?????????????????? | | ????????????????????# @ #?????????????????? | | ????????????????????# ;##?????????????????? | | ????????????????????# #??????????????????? | | ????????????????????# #??????????????????? | | ??????????????????? #??????????????????? | | ?????????????????? #??????????????????? | | ?????????????????# #??????????????????? | | ?????????????????## #??????????????????? | | ??????????????????## R #??????????????????? | | ???????????????????# ##??????????????????? | | ??????????????????? #???????????????????? | | ?????????????????? % ???????????????????? | | ?????????????????? ! "" ???????????????????? | | ?????????????????? %[" ""???????????????????? | | ?????????????????????## %" ??????????????????????? | | ???????????????????????%"????????????????????????? | | ?????????????????????????????????????????????????? | | ?????????????????????????????????????????????????? | | ?????????????????????????????????????????????????? | | ?????????????????????????????????????????????????? | | ?????????????????????????????????????????????????? | | ?????????????????????????????????????????????????? | | ?????????????????????????????????????????????????? | | ?????????????????????????????????????????????????? | | ?????????????????????????????????????????????????? | +----------------------------------------------------+ Best States ------------- Heat Dissipation 25 Energy Generation 10 Energy Capacity 250 Matter Stores 300 Matter Capacity 300 Sight Range 16 Terrain Scan Density 10 Armor Coverage 150 Evasion (%) 55 Recoil Reduction 2 Item Schematics ----------------- None Robot Schematics ------------------ None Fabricated ------------ Nothing Repaired ---------- Nothing Alien Tech Used ----------------- None Achievements -------------- None Challenges ------------ None Game ------ Seed MiniExoskeletonSpiker Manual? 0 Play Time 00:10:38 Cumulative 158.7 hours Start 2025.08.30 @ 15:08:05 End 2025.08.30 @ 15:18:04 Sessions 1 Manual Loads 0 Difficulty Rogue Special Mode None Game No. 221 Rogue 221 Adventurer 0 Explorer 0 Win Type - Total 1 Types 1/0/0/0/0/0/0/0/0/0 Lore% 71 Gallery% 66 Achievement% 57 Wizard Run 0 Options --------- Layout 0 ASCII 0 Keyboard 0 Movement Mouse Keybinds 0 Fullscreen 1 Font 16/SmallcapsGlow Map View 75x55 Zoom Use 0% Tactical HUD 1 Map Filters NONE Filters NONE Steam 1 RUN: 3b7deba4-6cf7-4fd2-847f-6d3b87a460d9